Cogmind - Beta 15 @@@ ROGUE MODE // 2025.08.02 @ 20:45:14 Player: Daemos Result: Destroyed by G-47 Trooper with Particle Gun Performance ------------- Evolutions (2) 1000 Regions Visited (8) 1600 Robots Destroyed (92) 460 Value Destroyed (2683) 2683 Prototype IDs (35) 700 Alien Tech Used (0) 0 Bonus (524) 524 TOTAL SCORE: 6967 Bonus ------- Follower Combat Kills 224 Aligned with FarCom 300 Cogmind --------- Core Integrity 0/550 Matter 54/300 Energy 99/100 System Corruption 2% Temperature Cool (9) Movement Core (50) Location -8/Storage Parts ------- > --- POWER (1) -------- (None) > --- PROPULSION (3) --- (None) > --- UTILITY (5) ------ (None) > --- WEAPON (2) ------- Powered Hammer > --- INVENTORY (5) ---- Advanced Assault Cannon Rocket Launcher Peak State ------------ > --- POWER ------------ Light Deuterium Engine > --- PROPULSION ------- Airjet Airjet Airjet > --- UTILITY ---------- Experimental Sensor Array 0b10 Alert Chip Improved Targeting Computer Transmission Jammer ECM Suite > --- WEAPON ----------- Advanced Assault Cannon Advanced Assault Cannon > --- INVENTORY -------- Light Deuterium Engine Airjet Assault Cannon Rocket Launcher Powered Hammer [Rating: 43] Favorites ----------- Power Light Deuterium Engine Engine Light Deuterium Engine Power Core Nuclear Core Propulsion Airjet Treads Light Treads Leg Aluminum Leg Wheel Wheel Hover Unit Airjet Flight Unit Flight Unit Utility Signal Interpreter Device Experimental Sensor Array Processor Signal Interpreter Protection Hardened Light Armor Plating Weapon Assault Cannon Energy Gun Medium Laser Ballistic Gun Heavy Assault Rifle Ballistic Cannon Assault Cannon Launcher Rocket Launcher Impact Weapon Powered Hammer Build | -11 -10 -10 -9 -9 -9 -8 -8 -8 ------- Run | Yrd Mat Min Mat Min Exi Min Mat Sto Slots Evolved 4 | . . . 2 . . . 2 . Power . | . . . . . . . . . Propulsion 1 | . . . 1 . . . . . Utility 3 | . . . 1 . . . 2 . Weapon . | . . . . . . . . . Parts Attached 83 | 5 15 7 39 1 . . 11 5 Power 14 | 1 2 2 7 . . . 1 1 Engine 11 | 1 2 1 6 . . . . 1 Core 3 | . . 1 1 . . . 1 . Reactor . | . . . . . . . . . Propulsion 29 | 2 4 2 17 . . . 3 1 Treads 7 | . . . 4 . . . 2 1 Leg 4 | . 2 . 2 . . . . . Wheel 3 | 2 1 . . . . . . . Hover 6 | . . . 5 . . . 1 . Flight 9 | . 1 2 6 . . . . . Utility 21 | . 7 1 6 1 . . 4 2 Device 12 | . 5 1 2 . . . 3 1 Storage . | . . . . . . . . . Processor 7 | . 2 . 2 1 . . 1 1 Hackware . | . . . . . . . . . Protection 2 | . . . 2 . . . . . Artifact . | . . . . . . . . . Weapon 19 | 2 2 2 9 . . . 3 1 Energy Gun 5 | 2 1 1 1 . . . . . Energy Cannon . | . . . . . . . . . Ballistic Gun 3 | . . 1 2 . . . . . Ballistic Cannon 6 | . 1 . 3 . . . 2 . Launcher 2 | . . . 1 . . . . 1 Special Weapon . | . . . . . . . . . Impact Weapon 3 | . . . 2 . . . 1 . Slashing Weapon . | . . . . . . . . . Piercing Weapon . | . . . . . . . . . Special Melee Weapon . | . . . . . . . . . Unidentified Prototypes 4 | . . 1 2 . . . . 1 Parts Lost 31 | . 8 . 9 . . . 3 11 Power 5 | . . . 2 . . . 1 2 Propulsion 13 | . 4 . 5 . . . 2 2 Utility 8 | . 2 . . . . . . 6 Weapon 5 | . 2 . 2 . . . . 1 Highest Loss Streak 9 | . 3 . 2 . . . 2 9 To Critical Strikes . | . . . . . . . . . Average Backups 4 | . 2 4 4 4 5 5 4 4 Power 1 | . 2 2 1 1 1 1 1 . Propulsion . | . . . . . . . . 1 Utility . | . . . 1 1 1 2 . . Weapon 2 | . . 2 1 2 2 2 2 2 Tool/Special . | . . . . . . . . . Unused Backups 3 | . 1 1 1 . . . . . Power 2 | . 1 1 . . . . . . Propulsion . | . . . . . . . . . Utility . | . . . . . . . . . Weapon 1 | . . . 1 . . . . . Tool/Special . | . . . . . . . . . Average Slot Usage (%) 94 | . 91 95 85 100 100 100 96 96 Engine 9 | . 14 13 9 11 11 11 2 3 Core 1 | . . . . . . . 6 5 Treads 6 | . . . 11 . . . 8 17 Leg 3 | . 11 18 . . . . . . Wheel 1 | . 10 . . . . . . . Hover 13 | . . . 8 33 33 33 15 8 Flight 2 | . . 9 5 . . . . . Device 11 | . 16 14 1 . . . 24 25 Processor 17 | . 9 14 19 22 22 22 18 17 Protection 4 | . . . 9 11 11 11 1 . Energy Gun 4 | . 21 9 . . . . . . Ballistic Gun 2 | . . . 10 . . . . . Ballistic Cannon 13 | . 6 13 6 22 22 22 15 12 Impact Weapon 1 | . . . . . . . 1 4 Peak Build Rating 43 | 5 9 15 24 25 25 25 43 40 Average Rating 22 | 3 7 9 15 24 24 25 39 38 On Entrance 18 | . 5 8 15 24 25 25 25 39 Naked Turns . | . . . . . . . . . Heaviest Build 24 | 9 12 12 23 20 20 20 23 24 Greatest Support 62 | 26 26 20 60 24 24 24 42 62 Greatest Overweight (x) 2 | . 2 2 2 . . . 2 1 Average Overweight (x) . | . . . . . . . . . Largest Inventory Capacity 5 | 5 5 5 5 5 5 5 5 5 Average Capacity 5 | 5 5 5 5 5 5 5 5 5 Most Carried 5 | 1 4 5 5 5 5 5 5 5 Average Carried 4 | . 2 4 4 4 4 5 4 4 Final Capacity 5 | 5 5 5 5 5 5 5 5 5 Final Carried 5 | 1 3 5 5 5 5 5 5 2 Class Distribution -------------------- 42% | Mutant 28% | Scavenger-Mutant 11% | Assassin 9% | Skirmisher 4% | Infiltrator-Skirmisher Dominant Class ---------------- Scavenger-Mutant | -10/Materials Scavenger-Mutant | -10/Mines Scavenger-Mutant | -9/Materials Mutant | -9/Mines Mutant | -9/Exiles Mutant | -8/Mines Infiltrator-Skirmisher | -8/Materials Assassin | -8/Storage Resources | -11 -10 -10 -9 -9 -9 -8 -8 -8 ----------- Run | Yrd Mat Min Mat Min Exi Min Mat Sto Matter Collected 2602 | 182 329 168 1014 128 . . 334 447 Remotely . | . . . . . . . . . Salvage Created 2556 | . 561 103 1104 52 . . 396 340 Parts 154 | . 30 11 71 10 . . 22 10 Haulers Intercepted 5 | . 1 . 4 . . . . . Recyclers Shooed 2 | . 1 1 . . . . . . Parts Field Recycled . | . . . . . . . . . Retrieved Matter . | . . . . . . . . . Parts Self-Destructed . | . . . . . . . . . Prevented . | . . . . . . . . . Kills | -11 -10 -10 -9 -9 -9 -8 -8 -8 ------- Run | Yrd Mat Min Mat Min Exi Min Mat Sto Combat Hostiles Destroyed 70 | . 16 7 21 6 . . 12 8 Guns 27 | . 13 3 11 . . . . . Cannons 37 | . 3 4 9 5 . . 9 7 AOE 4 | . . . 1 1 . . 2 . Classes Destroyed 15 | . 5 . 5 2 . . 2 1 Worker 4 | . . . 2 . . . 2 . Builder 1 | . 1 . . . . . . . Tunneler 1 | . . . . 1 . . . . Hauler 5 | . 1 . 4 . . . . . Recycler 2 | . . . . . . . 1 1 Mechanic 1 | . . . 1 . . . . . Operator 1 | . . . 1 . . . . . Watcher 9 | . 3 . 4 . . . 1 1 Swarmer 15 | . 6 5 . 4 . . . . Grunt 34 | . 10 2 14 . . . 5 3 Brawler 2 | . . . 2 . . . . . Duelist 1 | . . . . . . . . 1 Sentry 13 | . . . 5 . . . 6 2 Hunter 3 | . . . . . . . 1 2 Assembled 2 | . . . . 2 . . . . Best Kill Streak 7 | . 3 3 5 4 . . 7 2 Combat Bots Only 3 | . 3 3 3 3 . . 3 2 Max Kills in Single Turn 2 | . 2 1 2 2 . . 1 1 Gunslinging 1 | . 1 . . . . . . . Exploded 1 | . . . 1 1 . . 1 . Melee . | . . . . . . . . . Uniques/NPCs Destroyed . | . . . . . . . . . Combat | -11 -10 -10 -9 -9 -9 -8 -8 -8 -------- Run | Yrd Mat Min Mat Min Exi Min Mat Sto Hostile Shots Fired 442 | . 85 39 113 15 . . 80 110 Missed 141 | . 22 19 36 7 . . 32 25 Hits 301 | . 63 20 77 8 . . 48 85 Melee 7 | . . . . 2 . . . 5 Projectile 294 | . 63 20 77 6 . . 48 80 Critical Strikes 8 | . 1 . 1 . . . 2 4 Damage Taken 4117 | . 714 178 1074 184 . . 697 1270 Core 973 | . 166 71 169 8 . . 133 426 Absorbed by Shields 163 | . . . . . . . 23 140 Regen/Repaired (Parts) 255 | . . . 25 . . . . 230 Core Remaining (%) 53 | 100 . 5 . . . 55 . . Volleys Fired 321 | . 85 22 130 10 . . 41 33 Largest 2 | . 2 2 2 2 . . 2 2 Hottest 100 | . 100 95 74 74 . . 80 80 Shots Fired 509 | . 151 34 177 20 . . 69 58 Gun 244 | . 122 12 110 . . . . . Cannon 258 | . 29 22 66 20 . . 66 55 Launcher 7 | . . . 1 . . . 3 3 Special . | . . . . . . . . . Kinetic 368 | . 29 22 176 20 . . 66 55 Thermal 134 | . 122 12 . . . . . . Explosive 7 | . . . 1 . . . 3 3 Electromagnetic . | . . . . . . . . . Robot Hit Streak 16 | . 7 7 16 3 . . 8 7 Robot Miss Streak 4 | . 4 4 4 4 . . 4 3 Penetration Max . | . . . . . . . . . Secondary Targets 1 | . 1 . . . . . . . Max Gunslinging Chain 1 | . 1 . . . . . . . Shots Hit Robots 305 | . 88 18 115 6 . . 44 34 Core Hits 127 | . 33 8 45 6 . . 22 13 Critical Kills 1 | . . . 1 . . . . . Critical Parts Destroyed 2 | . . . 1 . . . . 1 Critical Strikes 25 | . 14 2 5 1 . . 2 1 Burn 15 | . 14 1 . . . . . . Destroy 2 | . . . 2 . . . . . Blast 7 | . . 1 3 1 . . 2 . Smash 1 | . . . . . . . . 1 Melee Attacks 27 | . . . . . . . 3 24 Impact 27 | . . . . . . . 3 24 Slashing . | . . . . . . . . . Piercing . | . . . . . . . . . Sneak Attacks 2 | . . . . . . . 1 1 Combat Hostiles . | . . . . . . . . . Follow-up Attacks . | . . . . . . . . . Damage Inflicted 6972 | . 1275 299 2135 239 . . 1897 1127 Guns 2195 | . 1037 122 1036 . . . . . Cannons 3650 | . 238 177 1011 192 . . 1132 900 Explosions 712 | . . . 76 47 . . 589 . Melee 403 | . . . . . . . 176 227 Ramming 12 | . . . 12 . . . . . Kinetic 4686 | . 238 177 2047 192 . . 1132 900 Thermal 1464 | . 1037 122 . 47 . . 258 . Explosive 407 | . . . 76 . . . 331 . Electromagnetic . | . . . . . . . . . Impact 403 | . . . . . . . 176 227 Slashing . | . . . . . . . . . Piercing . | . . . . . . . . . Highest Corruption 2 | . . . . . . . 2 2 Average Corruption 2 | . . . . . . . 2 2 Corruption Purged . | . . . . . . . . . Corruption Blocked . | . . . . . . . . . Effects 23 | . . . . . . . 2 21 Message Errors 10 | . . . . . . . 2 8 Heat Flow Errors 2 | . . . . . . . . 2 Energy Discharges 3 | . . . . . . . . 3 Parts Rejected 1 | . . . . . . . . 1 Parts Fused 1 | . . . . . . . . 1 Data Loss (minor) 4 | . . . . . . . . 4 Data Loss (major) 1 | . . . . . . . . 1 Misfires 1 | . . . . . . . . 1 Overload Shots . | . . . . . . . . . Overflow Damage 165 | . 5 . . 32 . . 64 64 Projectiles 30 | . 5 . . . . . 24 1 Explosions 32 | . . . . 32 . . . . Melee 103 | . . . . . . . 40 63 Knockbacks 21 | . 5 1 1 3 . . 5 6 Impact 2 | . . . . . . . . 2 Kinetic 18 | . 5 1 1 2 . . 5 4 Secondary 1 | . . . . 1 . . . . Self-Inflicted Damage 37 | . . . 4 33 . . . . Shots 1 | . . . . 1 . . . . Rammed 2 | . . . 1 . . . . 1 Targets Rammed 3 | . . . 2 . . . . 1 Kicked . | . . . . . . . . . Crushed 1 | . . . 1 . . . . . Highest Temperature 375 | . 375 225 223 162 . . 119 238 Average Temperature 74 | . 100 84 39 67 . . 43 82 Received Heat Transfer 1667 | . 321 27 516 . . . 363 440 Effects 2 | . 1 . 1 . . . . . Energy Bleed 2 | . 1 . 1 . . . . . Siege Activations . | . . . . . . . . . Martial Activations . | . . . . . . . . . Shielding Activations . | . . . . . . . . . Robots Disrupted . | . . . . . . . . . Combat Hostiles . | . . . . . . . . . Robots Corrupted 2 | . . . . . . . 1 1 Combat Hostiles 2 | . . . . . . . 1 1 Parts Fried 2 | . . . . . . . . 2 Impact Corruptions 3 | . . . . . . . 2 1 Robots Melted 1 | . 1 . . . . . . . Combat Hostiles . | . . . . . . . . . Parts Melted 8 | . 8 . . . . . . . Heat Transferred 4653 | . 4033 370 . 50 . . 200 . Parts Sabotaged . | . . . . . . . . . Parts Stolen . | . . . . . . . . . Parts Stripped . | . . . . . . . . . Power Chain Reactions . | . . . . . . . . . Alert | -11 -10 -10 -9 -9 -9 -8 -8 -8 ------- Run | Yrd Mat Min Mat Min Exi Min Mat Sto Maximum Alert Level 1 | . . . 1 . . . 1 . Low Security (%) 83 | 100 100 100 40 100 . 100 65 100 Level 1 16 | . . . 59 . . . 34 . Level 2 . | . . . . . . . . . Level 3 . | . . . . . . . . . Level 4 . | . . . . . . . . . Level 5 . | . . . . . . . . . High Security . | . . . . . . . . . Max Security . | . . . . . . . . . Peak Influence 310 | . 80 138 310 165 . . 261 90 Initial 90 | . . 7 37 35 . . . 90 Average 75 | . 29 34 194 68 . . 136 21 Influence Increases 2756 | . 534 266 1036 164 . . 461 295 Destroy 0b10 Robot/C 1464 | . 320 140 580 80 . . 208 136 Destroy 0b10 Robot/NC 114 | . 25 . 60 5 . . 16 8 Destroy Leader 430 | . 88 30 176 10 . . 72 54 Allied During Kill 16 | . . . 16 . . . . . Successful Hack 106 | . 22 6 39 . . . 16 23 Disable Machine 150 | . 15 . 45 30 . . 36 24 Destroy Structure 152 | . 4 . 15 24 . . 71 38 Partial Spotted 54 | . . . 30 . . . 12 12 Lose Combat Pursuer 270 | . 60 90 75 15 . . 30 . Influence Decreases 2749 | . 515 187 1042 256 . . 246 503 Entered New Map 255 | . . 12 61 57 . . . 125 Time Decay 1918 | . 435 175 571 199 . . 225 313 Lost Part 251 | . 80 . 90 . . . 21 60 Lost Ally 20 | . . . 20 . . . . . Purge Threat 305 | . . . 300 . . . . 5 Squads Dispatched 16 | . 4 . 4 . . . 4 4 Investigation 7 | . 3 . 2 . . . . 2 Extermination . | . . . . . . . . . Reinforcement 8 | . 1 . 2 . . . 3 2 Assault . | . . . . . . . . . Garrison 1 | . . . . . . . 1 . Intercept . | . . . . . . . . . Searches Triggered . | . . . . . . . . . Construction Impeded 1 | . . . . . . . . 1 Haulers Reinforced . | . . . . . . . . . Active Scanning Responses . | . . . . . . . . . Cargo Convoy Interrupts . | . . . . . . . . . Stealth | -11 -10 -10 -9 -9 -9 -8 -8 -8 --------- Run | Yrd Mat Min Mat Min Exi Min Mat Sto Distress Signals 12 | . 2 . 5 . . . 3 2 Communications Jammed . | . . . . . . . . . Distress Signals . | . . . . . . . . . Times Spotted 150 | . 26 12 37 22 . . 26 27 Peak Tracking Total 20 | . 4 3 8 20 . . 7 13 Tactical Retreats 17 | . 3 3 3 3 . . 5 . Traps | -11 -10 -10 -9 -9 -9 -8 -8 -8 ------- Run | Yrd Mat Min Mat Min Exi Min Mat Sto Traps Triggered 6 | . 3 . . . . . 2 1 Indirectly . | . . . . . . . . . Trap Hack Attempts . | . . . . . . . . . Triggered . | . . . . . . . . . Disarmed 6 | . . . 6 . . . . . Reprogrammed 1 | . . . 1 . . . . . Reused . | . . . . . . . . . Traps Extracted . | . . . . . . . . . Installed . | . . . . . . . . . Triggered . | . . . . . . . . . Objects Rigged 5 | . . . . . . . 5 . Exploded 1 | . . . . . . . 1 . Machines | -11 -10 -10 -9 -9 -9 -8 -8 -8 ---------- Run | Yrd Mat Min Mat Min Exi Min Mat Sto Machines Disabled 11 | . 1 . 3 2 . . 3 2 Max in Single Turn 2 | . 1 . 1 2 . . 2 1 Machines Repaired . | . . . . . . . . . Machines Dismantled . | . . . . . . . . . Machines Sabotaged . | . . . . . . . . . Overloaded Fab Kills . | . . . . . . . . . Hacking | -11 -10 -10 -9 -9 -9 -8 -8 -8 --------- Run | Yrd Mat Min Mat Min Exi Min Mat Sto Machines Accessed 32 | . 8 1 10 1 2 . 3 7 Terminals 24 | . 7 1 7 . . . 3 6 Fabricators . | . . . . . . . . . Repair Stations 2 | . . . 1 . . . . 1 Recycling Units 1 | . 1 . . . . . . . Scanalyzers 2 | . . . 2 . . . . . Garrison Access . | . . . . . . . . . Total Hacks 103 | . 17 3 42 1 8 . 11 21 Successful 60 | . 4 2 28 1 8 . 4 13 Failed 43 | . 13 1 14 . . . 7 8 Catastrophic 6 | . 1 . 2 . . . 2 1 Database Lockouts . | . . . . . . . . . Manual 49 | . 9 3 21 . 1 . 4 11 Terminals 78 | . 16 3 34 . . . 11 14 Fabricators . | . . . . . . . . . Repair Stations 10 | . . . 3 . . . . 7 Recycling Units 1 | . 1 . . . . . . . Scanalyzers 5 | . . . 5 . . . . . Garrison Access . | . . . . . . . . . Terminal Hacks 32 | . 3 . 15 1 8 . 1 4 Record 7 | . . . . . 7 . . . Robot Analysis 1 | . . . . . . . 1 . Prototype ID Bank 5 | . 1 . 4 . . . . . Open Door 3 | . . . . 1 . . . 2 Alert Level 4 | . . . 4 . . . . . Unreport Threat 3 | . . . 2 . . . . 1 Locate Traps 3 | . 2 . 1 . . . . . Disarm Traps 1 | . . . 1 . . . . . Reprogram Traps 1 | . . . 1 . . . . . Dispatch Records 1 | . . . 1 . . . . . Hauler Manifests 1 | . . . . . . . . 1 Registered Components 1 | . . . 1 . . . . . Proto ID Catalog 1 | . . . . . 1 . . . Fabricator Hacks . | . . . . . . . . . Repair Station Hacks 8 | . . . 2 . . . . 6 Scan Component 4 | . . . 1 . . . . 3 Repair 4 | . . . 1 . . . . 3 Recycling Unit Hacks 1 | . 1 . . . . . . . Retrieve Components 1 | . 1 . . . . . . . Scanalyzer 3 | . . . 3 . . . . . Insert Component 2 | . . . 2 . . . . . Analyze 1 | . . . 1 . . . . . Garrison Access Hacks . | . . . . . . . . . Unauthorized Hacks 16 | . . 2 8 . . . 3 3 Terminals 16 | . . 2 8 . . . 3 3 Assimilate 1 | . . . . . . . . 1 Botnet 12 | . . 1 7 . . . 2 2 Detonate 1 | . . . . . . . 1 . Operators 2 | . . 1 1 . . . . . Fabricators . | . . . . . . . . . Repair Stations . | . . . . . . . . . Recycling Units . | . . . . . . . . . Scanalyzers . | . . . . . . . . . Garrison Access . | . . . . . . . . . Data Cores Recovered 1 | . . . 1 . . . . . Used . | . . . . . . . . . Hacking Detections 21 | . 5 . 8 . . . 3 5 Full Trace Events 3 | . 1 . 1 . . . . 1 Feedback Events . | . . . . . . . . . Feedback Blocked . | . . . . . . . . . Robot Schematics Acquired . | . . . . . . . . . Robots Built . | . . . . . . . . . Authchips . | . . . . . . . . . Time . | . . . . . . . . . Total Robot Build Rating . | . . . . . . . . . Part Schematics Acquired . | . . . . . . . . . Parts Built . | . . . . . . . . . Authchips . | . . . . . . . . . Time . | . . . . . . . . . Total Part Build Rating . | . . . . . . . . . Parts Repaired 4 | . . . 1 . . . . 3 Time 216 | . . . 108 . . . . 108 Parts Recycled . | . . . . . . . . . Recycled Matter . | . . . . . . . . . Retrieved Matter . | . . . . . . . . . Retrieved Components 7 | . 7 . . . . . . . Parts Scanalyzed 1 | . . . 1 . . . . . Part Schematics Acquired . | . . . . . . . . . Parts Damaged . | . . . . . . . . . Bothacking | -11 -10 -10 -9 -9 -9 -8 -8 -8 ------------ Run | Yrd Mat Min Mat Min Exi Min Mat Sto Used RIF Installer . | . . . . . . . . . Robots Hacked . | . . . . . . . . . Non-combat . | . . . . . . . . . Combat . | . . . . . . . . . Robot Hacks Applied . | . . . . . . . . . Relay Couplers Released . | . . . . . . . . . Fabnet Peak Effective % . | . . . . . . . . . Robots Rewired . | . . . . . . . . . Allies Hacked . | . . . . . . . . . Hacks Repelled . | . . . . . . . . . Allies | -11 -10 -10 -9 -9 -9 -8 -8 -8 -------- Run | Yrd Mat Min Mat Min Exi Min Mat Sto Total Allies 1 | . . 1 . . . . . . Largest Group 1 | . . 1 1 . . . . . Highest-Rated Group 31 | . . 31 31 . . . . . Highest-Rated Ally 31 | . . 31 31 . . . . . Total Orders . | . . . . . . . . . Ally Attacks 24 | . . . 24 . . . . . Total Damage 293 | . . . 293 . . . . . Kills 8 | . . . 8 . . . . . Allies Corrupted . | . . . . . . . . . Allies Melted . | . . . . . . . . . Intel | -11 -10 -10 -9 -9 -9 -8 -8 -8 ------- Run | Yrd Mat Min Mat Min Exi Min Mat Sto Active Infowar (turns) 6360 | . 1305 785 1588 325 . . 648 1709 Optics 1708 | . . . 1383 325 . . . . Sensors 4172 | . 829 785 205 . . . 644 1709 Terrain 476 | . 476 . . . . . . . Structural 353 | . 353 . . . . . . . Jamming 78 | . . . . . . . 78 . ECM 2303 | . . . . . . . 594 1709 Robot Analysis Total 1 | . . . . . . . 1 . Derelict Logs Recovered 4 | . . 3 . 1 . . . . Drone Launches . | . . . . . . . . . Drone Recoveries . | . . . . . . . . . Exploration | -11 -10 -10 -9 -9 -9 -8 -8 -8 ------------- Run | Yrd Mat Min Mat Min Exi Min Mat Sto Turns Passed 8733 | 37 1367 785 1720 520 1262 599 667 1776 Spaces Moved 6352 | 33 890 786 1396 722 762 637 432 694 Core 75 | 3 25 . 8 . . . . 39 Treads 1217 | . . . 412 . . . 150 655 Legs 806 | . 419 377 10 . . . . . Wheels 450 | 30 420 . . . . . . . Hover 2993 | . . . 590 722 762 637 282 . Flight 811 | . 26 409 376 . . . . . Fastest Speed 30 | 50 80 37 30 52 52 52 52 50 Average Speed 84 | 86 104 77 87 52 52 52 102 146 Slowest Speed 240 | 90 200 210 200 52 52 52 240 155 Overloaded Moves . | . . . . . . . . . Propulsion Burnouts . | . . . . . . . . . Robots Hopped 14 | . . 5 9 . . . . . Potential Cave-ins . | . . . . . . . . . Cave-ins Triggered . | . . . . . . . . . Exploration Rate (%) 77 | 4 95 100 95 100 92 98 40 69 Regions Visited 8 Branch Regions 5 Pre-discovered Areas 1 | . . 1 . . . . . . Known Exits Taken 7 | . 1 1 1 1 1 1 1 . Unknown Exits Taken 1 | 1 . . . . . . . . Scrap Searched 3 | . . 1 . 1 . 1 . . Spaces Dug 6 | . . . . . . . . 6 Terrain Destroyed 150 | . . . 11 25 . . 74 40 Melee 6 | . . . . . . . . 6 Projectile 47 | . . . 2 7 . . 20 18 AOE 97 | . . . 9 18 . . 54 16 Terrain Rammed . | . . . . . . . . . Walls Destroyed . | . . . . . . . . . Machines Disabled . | . . . . . . . . . Actions | -11 -10 -10 -9 -9 -9 -8 -8 -8 --------- Run | Yrd Mat Min Mat Min Exi Min Mat Sto Total 9146 | 38 1175 924 1706 846 1627 904 576 1350 Wait 2273 | . 171 102 101 111 864 268 80 576 Move 6316 | 32 889 775 1377 721 761 636 431 694 Hop 14 | . . 5 9 . . . . . Pick Up 20 | 1 5 3 8 1 1 . . 1 Fast Attach 68 | 5 11 4 33 1 . . 8 6 Attach 11 | . 4 . 4 . . . 2 1 Detach 7 | . 2 2 3 . . . . . Swap 29 | . 2 4 9 . . . 6 8 Drop 57 | . 6 7 30 2 1 . 5 6 Fire 321 | . 85 22 130 10 . . 41 33 Melee 27 | . . . . . . . 3 24 Ram 1 | . . . 1 . . . . . Kick . | . . . . . . . . . Crush 2 | . . . 1 . . . . 1 Escape Stasis . | . . . . . . . . . Rewire . | . . . . . . . . . Trap . | . . . . . . . . . Miscellaneous . | . . . . . . . . . Route ------- -11/Scrapyard -10/Materials (discovered 5 exits: *Mat x3 / *Min / [Sub]) -10/Mines (discovered 2 exits: *Mat x2) -9/Materials (discovered 5 exits: *Mat x3 / *Min x2) -9/Mines (discovered 3 exits: *Mat x2 / *Exi) -9/Exiles (discovered 2 exits: *Min x2) -8/Mines (discovered 2 exits: *Mat x2) -8/Materials (discovered 3 exits: [*Fac] / *Sto x2) -8/Storage (discovered 1 exit: [*Fac]) History --------- Turn | Location | Event 22 | -11/Scrapyard | Discovered new exit (range 14) 38 | -11/Scrapyard | Entered Materials 316 | -10/Materials | Build established: Mutant 385 | -10/Materials | Discovered new exit (range 10) 433 | -10/Materials | Lost 3 parts (2n1u) 592 | -10/Materials | Discovered new exit (range 6) 748 | -10/Materials | Discovered new exit (range 16) 771 | -10/Materials | Discovered new exit (range 8) 788 | -10/Materials | Build established: Scavenger-Mutant 840 | -10/Materials | Lost 3 parts (1n2w) 1201 | -10/Materials | Core integrity fell below 50% 1245 | -10/Materials | Discovered new exit (range 8) 1282 | -10/Materials | Identified exit to Mines 1349 | -10/Materials | Identified exit to Materials 1405 | -10/Materials | Entered Mines 1518 | -10/Mines | Discovered exit to Materials (range 5) 1526 | -10/Mines | Received a Rocket Launcher from a helpful Derelict 1714 | -10/Mines | Learned Materials emergency access door positions 1919 | -10/Mines | Core integrity fell below 20% 1983 | -10/Mines | Learned 4 Materials zone layouts 2053 | -10/Mines | Found a damaged Exp. Sensor Array with a note attached 2054 | -10/Mines | Found Prototype Device 2054 | -10/Mines | Identified Exp. Sensor Array 2112 | -10/Mines | Escorted by a lone wolf Derelict 2181 | -10/Mines | Learned location of Storage (-8) 2190 | -10/Mines | Entered Materials 2190 | -9/Materials | Accompanied by 1 ally 2190 | -9/Materials | Evolved 2 slots: Propulsion x1, Utility x1 2191 | -9/Materials | Identified exit to Materials 2237 | -9/Materials | Build established: Mutant 2535 | -9/Materials | Discovered new exit (range 11) 2554 | -9/Materials | Identified exit to Mines 2712 | -9/Materials | Repaired Exp. Sensor Array? 2927 | -9/Materials | Discovered exit to Materials (range 17) 3193 | -9/Materials | Build established: Scavenger-Mutant 3680 | -9/Materials | Discovered exit to Mines (range 18) 3773 | -9/Materials | Discovered exit to Materials (range 16) 3910 | -9/Materials | Entered Mines 3922 | -9/Mines | Build established: Mutant 3975 | -9/Mines | Discovered exit to Materials (range 14) 3982 | -9/Mines | Assembled infested the area 4018 | -9/Mines | Met a Derelict who couldn't figure out how to use a Trap Extractor 4177 | -9/Mines | Discovered exit to Materials (range 9) 4209 | -9/Mines | Joined a pair of Derelicts in attacking an 0b10 outpost 4427 | -9/Mines | Deemed a non-threat by the Exiles lab entrance 4427 | -9/Mines | Discovered new exit (range 5) 4429 | -9/Mines | Identified exit to Exiles 4430 | -9/Mines | Entered Exiles 4443 | -9/Exiles | Met 8R-AWN 4452 | -9/Exiles | Met EX-HEX 4474 | -9/Exiles | Met EX-DEC 4491 | -9/Exiles | Visited The Gauntlet 4642 | -9/Exiles | Met EX-BIN 4653 | -9/Exiles | Aligned with FarCom system 4653 | -9/Exiles | Given EX-Vault access code 4665 | -9/Exiles | Opened EX-Vault 4701 | -9/Exiles | Found 0b10 Alert Chip 4712 | -9/Exiles | Warned to stay clear of 0b10 Research branches 4753 | -9/Exiles | Discovered new exit (range 12) 4758 | -9/Exiles | Identified exit to Mines 4814 | -9/Exiles | Discovered exit to Mines (range 14) 5692 | -9/Exiles | Left Exiles lab with 0b10 Alert Chip 5692 | -9/Exiles | Entered Mines 5733 | -8/Mines | Discovered exit to Materials (range 9) 6286 | -8/Mines | Discovered exit to Materials (range 9) 6291 | -8/Mines | Entered Materials 6291 | -8/Materials | Evolved 2 slots: Utility x2 6292 | -8/Materials | Identified exit to Storage 6609 | -8/Materials | Garrison activated, responded to threat 6767 | -8/Materials | Build established: Infiltrator-Skirmisher 6781 | -8/Materials | Discovered new exit (range 12) 6949 | -8/Materials | Discovered exit to Storage (range 7) 6958 | -8/Materials | Entered Storage 7159 | -8/Storage | Build established: Assassin 7244 | -8/Storage | Repaired Airjet 7273 | -8/Storage | Repaired Lgt. Treads 7318 | -8/Storage | Repaired Adv. Assault Cannon 7951 | -8/Storage | Build established: Skirmisher 8688 | -8/Storage | Build established: Assassin 8706 | -8/Storage | Core integrity fell below 50% 8716 | -8/Storage | Core integrity fell below 20% 8731 | -8/Storage | Discovered new exit (range 16) 8734 | -8/Storage | Destroyed by G-47 Trooper with Particle Gun Last Messages --------------- R-06 Scavenger collects Aluminum Leg. Adv. Assault Cannon destroyed. L-31 Rogue knocked back. R-06 Scavenger collects Lgt. Treads. Lgt. Deuterium Engine destroyed. Adv. Treads destroyed. 0b10 Alert Chip destroyed. L-31 Rogue suffers critical hit (Smash). Destroyed Imp. Aluminum Leg. L-31 Rogue system corrupted by crushing effect. L-31 Rogue knocked back. Shield Generator destroyed. L-31 Rogue system terminally corrupted. Katana fried. Melee Analysis Suite fried. Critical hit (Burn: +37). Melee Analysis Suite destroyed. ECM Suite destroyed. K-01 Serf collects debris. EXIT=FOUND Map ----- +----------------------------------------------------+ | ]#??#% #????# """ ## ##????? | | #??# #????# """ # #????? | | # #??# #????# # #????? | | # #### ##???# """ + #????? | | # % #???# """ # #????? | | # ##### """ # #????? | | # + ## ##????? | | # " ######## ###### #?#???? | | # T ############ #?# #T#???? | | # " # ???# # "!!#? | | # + """ ?????# + !!#? | | # # """ ?????# a # "!!#? | | ####### # """ [??????# ###???? | | #?????# #? ??????# #?????? | | #?????# #?#######??????# #?????? | | #?????# #??????????????# g#?????? | | #####?# #??????????????# #?????? | | ####### #???????????##?# #?????? | | #???????????#T## #?????? | | #?###??# " # #?????? | | ######+########?#! + #?????? | | # ##?# ! " # #?????? | | """ #""" ###?????# # #?????? | | """ #""" ""#?????##?# a#?????? | | """ #""" ""#????????# #?????? | | #""" T"#????????#@ #?????? | | #""" ! ""#????????# #?????? | | # ""#?Y??????# #?????? | | # ###????????# #?????? | | ##### #??????????# #?????? | | #???####"T"###??????????+ #?????? | | ?????#########??????????# #?????? | | ????????????????????????# #?????? | | ????????????????????????# #?????? | | ????????????????????????? < #?????? | | ????????????????????????? #?????? | | ?????????????????????????####?????? | | ??????????????????????????????????? | | ??????????????????????????????????? | | ??????????????????????????????????? | | ??????????????????????????????????? | | ??????????????????????????????????? | | ??????????????????????????????????? | | ??????????????????????????????????? | | ??????????????????????????????????? | | ??????????????????????????????????? | | ??????????????????????????????????? | | | | | | | +----------------------------------------------------+ Best States ------------- Heat Dissipation 38 Energy Generation 18 Energy Capacity 280 Matter Stores 300 Matter Capacity 300 Sight Range 18 Robot Scan Range 20 Terrain Scan Range 14 Terrain Scan Density 85 ECM Strength 1 Jamming Range 12 Armor Coverage 150 Evasion (%) 64 Targeting Accuracy 6 Melee Accuracy 5 Recoil Reduction 3 Item Schematics ----------------- None Robot Schematics ------------------ None Fabricated ------------ Nothing Repaired ---------- Exp. Sensor Array | 13% | -9/Materials Airjet | 17% | -8/Storage Lgt. Treads | 18% | -8/Storage Adv. Assault Cannon | 48% | -8/Storage Alien Tech Used ----------------- None Achievements -------------- None Challenges ------------ None Game ------ Seed chad Manual? 1 Play Time 01:30:08 Cumulative 102.8 hours Start 2025.08.01 @ 22:47:17 End 2025.08.02 @ 20:45:14 Sessions 5 Manual Loads 0 Difficulty Rogue Special Mode None Game No. 30 Rogue 1 Adventurer 29 Explorer 0 Win Type - Total 2 Types 1/0/1/0/0/0/0/0/0/0 Lore% 30 Gallery% 49 Achievement% 52 Wizard Run 0 Options --------- Layout 0 ASCII 0 Keyboard 0 Movement Numpad Keybinds 0 Fullscreen 2 Font 24/Smallcaps Map View 76x50 Zoom Use 0% Tactical HUD 0 Map Filters NONE Filters NONE Steam 1 RUN: d3769b84-cdcb-4c6b-8b28-1c4cd5a226ce